[Event "Late-Titled-Tuesday-Blitz-February-13-2024"]
[Site "Chess.com"]
[Date "2024.02.13"]
[Round "2"]
[White "sansanathalia"]
[Black "saikrishnaReturns"]
[Result "1/2-1/2"]
[WhiteElo "2386"]
[BlackElo "2771"]
[TimeControl "180+1"]
[EndTime "14:18:44 PST"]
[Termination "Game drawn - insufficient material"]

1. e4 {[%clk 0:03:00.9]} 1... c5 {[%clk 0:02:58.4]} 2. Nf3 {[%clk 0:02:58.2]}
2... d6 {[%clk 0:02:58.8]} 3. d4 {[%clk 0:02:56]} 3... cxd4 {[%clk 0:02:59.7]}
4. Qxd4 {[%clk 0:02:55]} 4... Nc6 {[%clk 0:02:58.8]} 5. Bb5 {[%clk 0:02:52.7]}
5... Bd7 {[%clk 0:02:53.3]} 6. Bxc6 {[%clk 0:02:50.7]} 6... Bxc6 {[%clk
0:02:54.2]} 7. Nc3 {[%clk 0:02:50.7]} 7... Nf6 {[%clk 0:02:54.1]} 8. Bg5 {[%clk
0:02:48.6]} 8... e6 {[%clk 0:02:49.8]} 9. O-O-O {[%clk 0:02:47.4]} 9... Be7
{[%clk 0:02:49.4]} 10. Rhe1 {[%clk 0:02:31.5]} 10... Qa5 {[%clk 0:02:26.7]} 11.
Kb1 {[%clk 0:02:20.7]} 11... Rc8 {[%clk 0:02:18.4]} 12. Qd2 {[%clk 0:02:06.2]}
12... h6 {[%clk 0:01:56.1]} 13. Bh4 {[%clk 0:01:55.9]} 13... Qb6 {[%clk
0:01:46.7]} 14. Bg3 {[%clk 0:01:45.6]} 14... O-O {[%clk 0:01:29.3]} 15. Nd4
{[%clk 0:01:42.6]} 15... Bd7 {[%clk 0:01:21.9]} 16. f4 {[%clk 0:01:35]} 16...
Rfd8 {[%clk 0:01:20.1]} 17. h3 {[%clk 0:01:30.1]} 17... d5 {[%clk 0:01:16.1]}
18. Bf2 {[%clk 0:00:51.5]} 18... Bb4 {[%clk 0:00:54.5]} 19. Nb3 {[%clk 0:00:33]}
19... Qa6 {[%clk 0:00:43.4]} 20. exd5 {[%clk 0:00:20]} 20... Nxd5 {[%clk
0:00:40.6]} 21. Bd4 {[%clk 0:00:19.2]} 21... Rc4 {[%clk 0:00:37.3]} 22. Qd3
{[%clk 0:00:17.7]} 22... Bxc3 {[%clk 0:00:34.8]} 23. Bxc3 {[%clk 0:00:16.9]}
23... Rdc8 {[%clk 0:00:30.2]} 24. Rd2 {[%clk 0:00:10.1]} 24... Rxc3 {[%clk
0:00:23.1]} 25. Qxa6 {[%clk 0:00:08.4]} 25... bxa6 {[%clk 0:00:21.5]} 26. bxc3
{[%clk 0:00:08.8]} 26... Rxc3 {[%clk 0:00:19.9]} 27. Kb2 {[%clk 0:00:09.4]}
27... Rc4 {[%clk 0:00:17.6]} 28. f5 {[%clk 0:00:09.8]} 28... Kf8 {[%clk
0:00:14.7]} 29. fxe6 {[%clk 0:00:09.9]} 29... Bxe6 {[%clk 0:00:15.6]} 30. Nd4
{[%clk 0:00:10.1]} 30... Bd7 {[%clk 0:00:15.2]} 31. Rd3 {[%clk 0:00:08.6]} 31...
Rb4+ {[%clk 0:00:15]} 32. Kc1 {[%clk 0:00:08.7]} 32... Ra4 {[%clk 0:00:14.6]}
33. a3 {[%clk 0:00:08.1]} 33... Nb6 {[%clk 0:00:13.8]} 34. Ne2 {[%clk
0:00:04.6]} 34... Bb5 {[%clk 0:00:12.6]} 35. Rb3 {[%clk 0:00:04.3]} 35... Nc4
{[%clk 0:00:12.6]} 36. Nc3 {[%clk 0:00:04.2]} 36... Rxa3 {[%clk 0:00:11.9]} 37.
Rxa3 {[%clk 0:00:03.8]} 37... Nxa3 {[%clk 0:00:12.8]} 38. Nxb5 {[%clk
0:00:02.7]} 38... Nxb5 {[%clk 0:00:13.1]} 39. Kb2 {[%clk 0:00:03.2]} 39... Nd6
{[%clk 0:00:13]} 40. c3 {[%clk 0:00:03.2]} 40... f5 {[%clk 0:00:11.9]} 41. Kb3
{[%clk 0:00:03.7]} 41... g5 {[%clk 0:00:11.1]} 42. c4 {[%clk 0:00:04]} 42... Ne4
{[%clk 0:00:11.5]} 43. Kb4 {[%clk 0:00:03.9]} 43... Ke7 {[%clk 0:00:11.3]} 44.
Ka5 {[%clk 0:00:03.6]} 44... Kd6 {[%clk 0:00:11.3]} 45. Kxa6 {[%clk 0:00:03.8]}
45... Kc5 {[%clk 0:00:11.9]} 46. Kxa7 {[%clk 0:00:04.3]} 46... Kxc4 {[%clk
0:00:12.3]} 47. Kb6 {[%clk 0:00:03.2]} 47... Kd3 {[%clk 0:00:12.4]} 48. Kc6
{[%clk 0:00:02.8]} 48... Kd2 {[%clk 0:00:12.9]} 49. Rf1 {[%clk 0:00:02.7]} 49...
f4 {[%clk 0:00:13.5]} 50. Rf3 {[%clk 0:00:03.1]} 50... Ke2 {[%clk 0:00:13.6]}
51. Kd5 {[%clk 0:00:03.2]} 51... Nd2 {[%clk 0:00:14]} 52. Ra3 {[%clk 0:00:03.4]}
52... Kf2 {[%clk 0:00:13.2]} 53. Ra2 {[%clk 0:00:03.3]} 53... Ke1 {[%clk
0:00:13]} 54. Ke5 {[%clk 0:00:03.1]} 54... f3 {[%clk 0:00:12.3]} 55. gxf3 {[%clk
0:00:03]} 55... Nxf3+ {[%clk 0:00:13.2]} 56. Ke4 {[%clk 0:00:02.8]} 56... Ng1
{[%clk 0:00:12.9]} 57. Ke3 {[%clk 0:00:02.9]} 57... Kf1 {[%clk 0:00:13]} 58.
Rf2+ {[%clk 0:00:02.2]} 58... Ke1 {[%clk 0:00:13.3]} 59. Rg2 {[%clk 0:00:01.9]}
59... Kf1 {[%clk 0:00:13.6]} 60. Rh2 {[%clk 0:00:02.2]} 60... h5 {[%clk
0:00:13]} 61. h4 {[%clk 0:00:02.2]} 61... g4 {[%clk 0:00:13]} 62. Ra2 {[%clk
0:00:02.1]} 62... Nf3 {[%clk 0:00:12.8]} 63. Kf4 {[%clk 0:00:01.7]} 63... Nxh4
{[%clk 0:00:11.9]} 64. Kg3 {[%clk 0:00:01.6]} 64... Nf5+ {[%clk 0:00:11.9]} 65.
Kf4 {[%clk 0:00:01.3]} 65... Nd4 {[%clk 0:00:12.4]} 66. Kg3 {[%clk 0:00:01.6]}
66... Ne2+ {[%clk 0:00:11.8]} 67. Kh4 {[%clk 0:00:02]} 67... Kf2 {[%clk
0:00:12.3]} 68. Ra1 {[%clk 0:00:02.5]} 68... g3 {[%clk 0:00:12.3]} 69. Kxh5
{[%clk 0:00:03]} 69... g2 {[%clk 0:00:12.7]} 70. Kh4 {[%clk 0:00:03.4]} 70...
Ng3 {[%clk 0:00:12.3]} 71. Kh3 {[%clk 0:00:03.5]} 71... Ne2 {[%clk 0:00:11.7]}
72. Kh2 {[%clk 0:00:02.5]} 72... Nf4 {[%clk 0:00:10.9]} 73. Ra2+ {[%clk
0:00:02.5]} 73... Ne2 {[%clk 0:00:11.4]} 74. Rxe2+ {[%clk 0:00:02.8]} 74... Kxe2
{[%clk 0:00:12.3]} 75. Kxg2 {[%clk 0:00:03.2]} 1/2-1/2

[Event "Late-Titled-Tuesday-Blitz-February-13-2024"]
[Site "Chess.com"]
[Date "2024.02.13"]
[Round "2"]
[White "Bilan_Danila"]
[Black "IngOscarArdila"]
[Result "0-1"]
[WhiteElo "2541"]
[BlackElo "2324"]
[TimeControl "180+1"]
[EndTime "14:18:50 PST"]
[Termination "IngOscarArdila won by resignation"]

1. d4 {[%clk 0:03:00.7]} 1... Nf6 {[%clk 0:03:00.1]} 2. Nf3 {[%clk 0:03:00.2]}
2... g6 {[%clk 0:02:58.4]} 3. Bg5 {[%clk 0:02:59.6]} 3... Bg7 {[%clk 0:02:57.7]}
4. c3 {[%clk 0:02:58.2]} 4... h6 {[%clk 0:02:58]} 5. Bh4 {[%clk 0:02:57.9]} 5...
d6 {[%clk 0:02:58.1]} 6. Nbd2 {[%clk 0:02:57.7]} 6... Bf5 {[%clk 0:02:54.1]} 7.
e3 {[%clk 0:02:41.6]} 7... O-O {[%clk 0:02:53.7]} 8. Bc4 {[%clk 0:02:41.5]} 8...
d5 {[%clk 0:02:53.2]} 9. Bb3 {[%clk 0:02:39.2]} 9... c6 {[%clk 0:02:52.3]} 10.
O-O {[%clk 0:02:34.1]} 10... Nbd7 {[%clk 0:02:51.3]} 11. c4 {[%clk 0:02:33.9]}
11... Bd3 {[%clk 0:02:44.1]} 12. Re1 {[%clk 0:02:32.9]} 12... dxc4 {[%clk
0:02:44.5]} 13. Nxc4 {[%clk 0:02:33.7]} 13... Be4 {[%clk 0:02:39]} 14. Nfe5
{[%clk 0:02:27.7]} 14... Nxe5 {[%clk 0:02:33.8]} 15. Nxe5 {[%clk 0:02:21]} 15...
g5 {[%clk 0:02:20]} 16. Bg3 {[%clk 0:02:16.3]} 16... Bd5 {[%clk 0:02:20]} 17.
Bc2 {[%clk 0:01:43]} 17... Ne4 {[%clk 0:02:05]} 18. Qh5 {[%clk 0:01:26.7]} 18...
Nxg3 {[%clk 0:01:53.6]} 19. hxg3 {[%clk 0:01:27]} 19... f5 {[%clk 0:01:25.1]}
20. f4 {[%clk 0:01:16.8]} 20... e6 {[%clk 0:01:16.1]} 21. Kf2 {[%clk 0:00:50.8]}
21... Qe8 {[%clk 0:01:15.8]} 22. Qe2 {[%clk 0:00:47.6]} 22... Bxe5 {[%clk
0:01:14]} 23. dxe5 {[%clk 0:00:43.1]} 23... Qe7 {[%clk 0:01:10.9]} 24. Rh1
{[%clk 0:00:42.6]} 24... Kg7 {[%clk 0:01:07.8]} 25. Rad1 {[%clk 0:00:33.7]}
25... Rh8 {[%clk 0:01:02.7]} 26. a3 {[%clk 0:00:30.8]} 26... Raf8 {[%clk
0:01:01.6]} 27. b4 {[%clk 0:00:24.1]} 27... a5 {[%clk 0:01:00.1]} 28. Rd4 {[%clk
0:00:22.3]} 28... axb4 {[%clk 0:00:59.7]} 29. axb4 {[%clk 0:00:23.2]} 29... Ra8
{[%clk 0:00:56.5]} 30. e4 {[%clk 0:00:19.4]} 30... fxe4 {[%clk 0:00:51.5]} 31.
Bxe4 {[%clk 0:00:19.7]} 31... Raf8 {[%clk 0:00:50]} 32. Bxd5 {[%clk 0:00:19.5]}
32... cxd5 {[%clk 0:00:48.4]} 33. Qg4 {[%clk 0:00:15.4]} 33... Qf7 {[%clk
0:00:40.6]} 34. Rh5 {[%clk 0:00:14.3]} 34... Qf5 {[%clk 0:00:40]} 35. Qe2 {[%clk
0:00:10.7]} 35... Qg6 {[%clk 0:00:25.3]} 36. Kg1 {[%clk 0:00:10.4]} 36... gxf4
{[%clk 0:00:20.2]} 37. gxf4 {[%clk 0:00:09.5]} 37... Rf5 {[%clk 0:00:18.6]} 38.
Rh3 {[%clk 0:00:08]} 38... Kh7 {[%clk 0:00:16.1]} 39. Rc3 {[%clk 0:00:05.2]}
39... Rg8 {[%clk 0:00:12.8]} 40. Rc7+ {[%clk 0:00:05.2]} 40... Rf7 {[%clk
0:00:13.5]} 41. Rxf7+ {[%clk 0:00:05.4]} 41... Qxf7 {[%clk 0:00:14.4]} 42. Qd3+
{[%clk 0:00:03.5]} 42... Kh8 {[%clk 0:00:14]} 43. Qh3 {[%clk 0:00:02.5]} 43...
Qg6 {[%clk 0:00:13.8]} 44. Rd2 {[%clk 0:00:02.7]} 44... Kh7 {[%clk 0:00:12.6]}
45. Rf2 {[%clk 0:00:02.9]} 45... Rf8 {[%clk 0:00:10.8]} 46. Kh2 {[%clk
0:00:03.3]} 46... Rf5 {[%clk 0:00:10.8]} 47. Rc2 {[%clk 0:00:03.5]} 47... Rh5
{[%clk 0:00:10.1]} 48. Rc7+ {[%clk 0:00:04.2]} 48... Kh8 {[%clk 0:00:10.5]} 49.
Rc8+ {[%clk 0:00:04.5]} 49... Kh7 {[%clk 0:00:10.9]} 50. Rc7+ {[%clk 0:00:05.3]}
50... Kg8 {[%clk 0:00:11.3]} 51. Rc8+ {[%clk 0:00:05.9]} 51... Kf7 {[%clk
0:00:11.7]} 52. Rc7+ {[%clk 0:00:06.8]} 52... Ke8 {[%clk 0:00:12.1]} 53. Rc3
{[%clk 0:00:06.2]} 53... Rxh3+ {[%clk 0:00:11.9]} 54. Rxh3 {[%clk 0:00:07.1]}
54... h5 {[%clk 0:00:12.4]} 55. Rc3 {[%clk 0:00:05.4]} 55... Kd7 {[%clk
0:00:11.7]} 56. g3 {[%clk 0:00:05.5]} 56... Qg4 {[%clk 0:00:11.8]} 57. Ra3
{[%clk 0:00:04.8]} 57... h4 {[%clk 0:00:11.7]} 58. gxh4 {[%clk 0:00:04.5]} 58...
Qxh4+ {[%clk 0:00:12]} 59. Kg2 {[%clk 0:00:04.6]} 59... Qg4+ {[%clk 0:00:12.5]}
60. Kf2 {[%clk 0:00:04.8]} 60... Qxf4+ {[%clk 0:00:13]} 61. Ke2 {[%clk
0:00:05.7]} 61... Qh2+ {[%clk 0:00:12.9]} 62. Kd1 {[%clk 0:00:05.1]} 62... Qg1+
{[%clk 0:00:13]} 63. Kc2 {[%clk 0:00:05.4]} 63... Qf2+ {[%clk 0:00:12.1]} 64.
Kb3 {[%clk 0:00:06.3]} 64... Qe3+ {[%clk 0:00:12]} 65. Ka4 {[%clk 0:00:07.2]}
65... Qxe5 {[%clk 0:00:11.6]} 66. Kb5 {[%clk 0:00:07]} 66... Qd6 {[%clk
0:00:11.8]} 67. Rc3 {[%clk 0:00:06.9]} 67... e5 {[%clk 0:00:10.8]} 68. Ka5
{[%clk 0:00:06.6]} 68... d4 {[%clk 0:00:11.1]} 69. Rc1 {[%clk 0:00:06.5]} 69...
d3 {[%clk 0:00:11.4]} 70. Rd1 {[%clk 0:00:06.7]} 70... d2 {[%clk 0:00:11.8]} 71.
b5 {[%clk 0:00:07.3]} 71... e4 {[%clk 0:00:11.7]} 72. b6 {[%clk 0:00:07.2]}
72... e3 {[%clk 0:00:11.7]} 73. Rh1 {[%clk 0:00:06.3]} 73... Qd5+ {[%clk
0:00:11.1]} 74. Ka4 {[%clk 0:00:06]} 74... Qxh1 {[%clk 0:00:12]} 0-1

[Event "Late-Titled-Tuesday-Blitz-February-13-2024"]
[Site "Chess.com"]
[Date "2024.02.13"]
[Round "2"]
[White "Savagelittlemole"]
[Black "LUISMIGUELOV"]
[Result "1/2-1/2"]
[WhiteElo "2463"]
[BlackElo "2183"]
[TimeControl "180+1"]
[EndTime "14:18:53 PST"]
[Termination "Game drawn by repetition"]

1. e4 {[%clk 0:03:00.9]} 1... e5 {[%clk 0:02:54.3]} 2. Nf3 {[%clk 0:03:01]} 2...
Nc6 {[%clk 0:02:53.4]} 3. Bb5 {[%clk 0:03:01.1]} 3... a6 {[%clk 0:02:52.2]} 4.
Ba4 {[%clk 0:03:00.7]} 4... Nf6 {[%clk 0:02:51.6]} 5. O-O {[%clk 0:03:00.9]}
5... b5 {[%clk 0:02:50.8]} 6. Bb3 {[%clk 0:03:01]} 6... Be7 {[%clk 0:02:51.2]}
7. Re1 {[%clk 0:02:59.6]} 7... O-O {[%clk 0:02:50.5]} 8. h3 {[%clk 0:02:55]}
8... d5 {[%clk 0:02:41.3]} 9. exd5 {[%clk 0:02:54.7]} 9... Nxd5 {[%clk
0:02:41.1]} 10. Nxe5 {[%clk 0:02:53.8]} 10... Nxe5 {[%clk 0:02:41.1]} 11. Rxe5
{[%clk 0:02:54.7]} 11... c6 {[%clk 0:02:41]} 12. Re1 {[%clk 0:02:47.4]} 12...
Bd6 {[%clk 0:02:38.8]} 13. d4 {[%clk 0:02:40.2]} 13... Qh4 {[%clk 0:02:38]} 14.
Qf3 {[%clk 0:02:29.3]} 14... Be6 {[%clk 0:02:27.8]} 15. Nc3 {[%clk 0:02:21.4]}
15... Qxd4 {[%clk 0:02:20.9]} 16. Nxd5 {[%clk 0:02:11.7]} 16... Bxd5 {[%clk
0:02:20]} 17. Bxd5 {[%clk 0:02:11.5]} 17... Qxd5 {[%clk 0:02:14.4]} 18. Qxd5
{[%clk 0:02:10.4]} 18... cxd5 {[%clk 0:02:14.2]} 19. Be3 {[%clk 0:02:05.9]}
19... Rad8 {[%clk 0:02:12.2]} 20. Rad1 {[%clk 0:02:04.3]} 20... Rfe8 {[%clk
0:02:10.9]} 21. Kf1 {[%clk 0:02:03.3]} 21... Be5 {[%clk 0:02:07.5]} 22. c3
{[%clk 0:01:58]} 22... f6 {[%clk 0:02:05.1]} 23. Bb6 {[%clk 0:01:52.4]} 23...
Rb8 {[%clk 0:01:57.4]} 24. Ba5 {[%clk 0:01:44.9]} 24... b4 {[%clk 0:01:41.7]}
25. Bxb4 {[%clk 0:01:36.4]} 25... d4 {[%clk 0:01:42.1]} 26. f4 {[%clk
0:01:29.6]} 26... dxc3 {[%clk 0:01:42]} 27. fxe5 {[%clk 0:01:12.9]} 27... Rxb4
{[%clk 0:01:37.5]} 28. bxc3 {[%clk 0:01:13]} 28... Rb2 {[%clk 0:01:33.8]} 29.
exf6 {[%clk 0:01:11.6]} 29... Rxe1+ {[%clk 0:01:31.3]} 30. Rxe1 {[%clk
0:01:12.5]} 30... Rxa2 {[%clk 0:01:31]} 31. fxg7 {[%clk 0:01:08.4]} 31... Kxg7
{[%clk 0:01:31.2]} 32. Re7+ {[%clk 0:01:08.6]} 32... Kg6 {[%clk 0:01:29.8]} 33.
c4 {[%clk 0:01:04.6]} 33... Rc2 {[%clk 0:01:27.7]} 34. Ra7 {[%clk 0:01:01.1]}
34... Rxc4 {[%clk 0:01:25.8]} 35. Rxa6+ {[%clk 0:01:01.7]} 35... Kg7 {[%clk
0:01:24.5]} 36. Kf2 {[%clk 0:01:02.2]} 36... Rc2+ {[%clk 0:01:22.5]} 37. Kg3
{[%clk 0:01:01.2]} 37... Rc3+ {[%clk 0:01:22.6]} 38. Kh4 {[%clk 0:00:59.9]}
38... Rc4+ {[%clk 0:01:22.6]} 39. g4 {[%clk 0:01:00.4]} 39... Rc3 {[%clk
0:01:22.1]} 40. Ra5 {[%clk 0:00:55]} 40... Rb3 {[%clk 0:01:20.6]} 41. Rh5 {[%clk
0:00:55.3]} 41... Ra3 {[%clk 0:01:19.3]} 42. Rf5 {[%clk 0:00:51.7]} 42... Rb3
{[%clk 0:01:18.4]} 43. Rf4 {[%clk 0:00:52.2]} 43... Ra3 {[%clk 0:01:17.9]} 44.
g5 {[%clk 0:00:50.7]} 44... Kg6 {[%clk 0:01:14.7]} 45. Rf6+ {[%clk 0:00:47.4]}
45... Kg7 {[%clk 0:01:14.5]} 46. Kg4 {[%clk 0:00:46.5]} 46... Ra4+ {[%clk
0:01:14.4]} 47. Kh5 {[%clk 0:00:45.7]} 47... Ra3 {[%clk 0:01:10.4]} 48. h4
{[%clk 0:00:45.5]} 48... Ra4 {[%clk 0:01:07.2]} 49. Rb6 {[%clk 0:00:45.1]} 49...
Ra7 {[%clk 0:01:05.9]} 50. Rb4 {[%clk 0:00:45.4]} 50... Rc7 {[%clk 0:01:04.5]}
51. Kg4 {[%clk 0:00:44.8]} 51... Ra7 {[%clk 0:00:58.2]} 52. h5 {[%clk
0:00:35.7]} 52... Rc7 {[%clk 0:00:55.1]} 53. h6+ {[%clk 0:00:29.3]} 53... Kf7
{[%clk 0:00:53.1]} 54. Rb5 {[%clk 0:00:20.7]} 54... Ra7 {[%clk 0:00:52.5]} 55.
Kf5 {[%clk 0:00:20.4]} 55... Rc7 {[%clk 0:00:49]} 56. Ra5 {[%clk 0:00:20.4]}
56... Rb7 {[%clk 0:00:48.2]} 57. Kg4 {[%clk 0:00:20]} 57... Rb4+ {[%clk
0:00:46.6]} 58. Kh5 {[%clk 0:00:19.9]} 58... Rb7 {[%clk 0:00:45.8]} 59. Rf5+
{[%clk 0:00:20.4]} 59... Kg8 {[%clk 0:00:43.7]} 60. Rf6 {[%clk 0:00:20.7]} 60...
Rb5 {[%clk 0:00:39.6]} 61. Rf4 {[%clk 0:00:20.7]} 61... Ra5 {[%clk 0:00:37.1]}
62. Kg4 {[%clk 0:00:18.5]} 62... Rb5 {[%clk 0:00:36]} 63. Rf5 {[%clk 0:00:18.8]}
63... Rb4+ {[%clk 0:00:35.3]} 64. Kh5 {[%clk 0:00:18.9]} 64... Ra4 {[%clk
0:00:33.5]} 65. g6 {[%clk 0:00:18.5]} 65... hxg6+ {[%clk 0:00:32]} 66. Kxg6
{[%clk 0:00:18.6]} 66... Ra6+ {[%clk 0:00:32.3]} 67. Kg5 {[%clk 0:00:18.4]}
67... Kh7 {[%clk 0:00:30.7]} 68. Rf7+ {[%clk 0:00:18.6]} 68... Kg8 {[%clk
0:00:29.7]} 69. Rg7+ {[%clk 0:00:15]} 69... Kh8 {[%clk 0:00:29.4]} 70. Rf7
{[%clk 0:00:12.3]} 70... Kg8 {[%clk 0:00:28.6]} 71. Rf5 {[%clk 0:00:12.4]} 71...
Kh8 {[%clk 0:00:27.5]} 72. Kh5 {[%clk 0:00:12.3]} 72... Kh7 {[%clk 0:00:26.8]}
73. Rf7+ {[%clk 0:00:12.3]} 73... Kg8 {[%clk 0:00:26.5]} 74. Rb7 {[%clk
0:00:12.6]} 74... Kh8 {[%clk 0:00:25.7]} 75. Kg5 {[%clk 0:00:12.5]} 75... Kg8
{[%clk 0:00:25.3]} 76. Re7 {[%clk 0:00:11.6]} 76... Kh8 {[%clk 0:00:24.9]} 77.
h7 {[%clk 0:00:11.3]} 77... Ra5+ {[%clk 0:00:23.3]} 78. Kg6 {[%clk 0:00:11.1]}
78... Ra6+ {[%clk 0:00:22.9]} 79. Kf5 {[%clk 0:00:09.2]} 79... Ra5+ {[%clk
0:00:22.5]} 80. Kf6 {[%clk 0:00:09.5]} 80... Ra6+ {[%clk 0:00:22.6]} 81. Kf5
{[%clk 0:00:07.9]} 81... Ra5+ {[%clk 0:00:22.6]} 82. Kg6 {[%clk 0:00:08.3]}
82... Ra6+ {[%clk 0:00:22.4]} 83. Kf5 {[%clk 0:00:08.7]} 1/2-1/2

[Event "Late-Titled-Tuesday-Blitz-February-13-2024"]
[Site "Chess.com"]
[Date "2024.02.13"]
[Round "2"]
[White "ArtemDyachuk"]
[Black "Fandorine"]
[Result "1/2-1/2"]
[WhiteElo "2617"]
[BlackElo "2952"]
[TimeControl "180+1"]
[EndTime "14:18:54 PST"]
[Termination "Game drawn - insufficient material"]

1. d4 {[%clk 0:03:00.9]} 1... Nf6 {[%clk 0:02:59.8]} 2. c4 {[%clk 0:03:00.3]}
2... e6 {[%clk 0:03:00.2]} 3. Nf3 {[%clk 0:03:00.4]} 3... b6 {[%clk 0:02:59.1]}
4. g3 {[%clk 0:03:00.1]} 4... Bb7 {[%clk 0:02:59.1]} 5. Bg2 {[%clk 0:02:59.2]}
5... Be7 {[%clk 0:02:58.9]} 6. O-O {[%clk 0:02:59.2]} 6... O-O {[%clk
0:02:59.6]} 7. d5 {[%clk 0:02:59.8]} 7... Na6 {[%clk 0:02:57.1]} 8. Nc3 {[%clk
0:02:58.9]} 8... Bb4 {[%clk 0:02:56.6]} 9. Nd4 {[%clk 0:02:44]} 9... Bxc3 {[%clk
0:02:50.9]} 10. bxc3 {[%clk 0:02:44.9]} 10... Nc5 {[%clk 0:02:42.6]} 11. a4
{[%clk 0:02:42.3]} 11... exd5 {[%clk 0:02:39.6]} 12. Nf5 {[%clk 0:02:32.9]}
12... dxc4 {[%clk 0:02:36.3]} 13. Bxb7 {[%clk 0:02:19.1]} 13... Nxb7 {[%clk
0:02:37.2]} 14. Qd4 {[%clk 0:02:18.4]} 14... Re8 {[%clk 0:02:24.2]} 15. Bg5
{[%clk 0:02:07]} 15... d5 {[%clk 0:02:09.1]} 16. Nh6+ {[%clk 0:01:26.2]} 16...
Kf8 {[%clk 0:02:07.1]} 17. Ng4 {[%clk 0:01:26.4]} 17... Re4 {[%clk 0:01:37.3]}
18. Nxf6 {[%clk 0:01:18.7]} 18... Rxd4 {[%clk 0:01:17.4]} 19. Nxh7+ {[%clk
0:01:18.4]} 19... Kg8 {[%clk 0:01:17.9]} 20. Bxd8 {[%clk 0:01:19.3]} 20... Rd2
{[%clk 0:01:16.3]} 21. Nf6+ {[%clk 0:00:45.6]} 21... gxf6 {[%clk 0:01:04.6]} 22.
Bxc7 {[%clk 0:00:46.1]} 22... Rxe2 {[%clk 0:01:00]} 23. Rfd1 {[%clk 0:00:45.7]}
23... Rc8 {[%clk 0:00:58.9]} 24. Bf4 {[%clk 0:00:45.2]} 24... Rd8 {[%clk
0:00:58.8]} 25. Rd4 {[%clk 0:00:33.7]} 25... Nc5 {[%clk 0:00:54.4]} 26. a5
{[%clk 0:00:17.1]} 26... Nb3 {[%clk 0:00:51.8]} 27. axb6 {[%clk 0:00:14.8]}
27... axb6 {[%clk 0:00:52.1]} 28. Bc7 {[%clk 0:00:14.5]} 28... Rc8 {[%clk
0:00:22.8]} 29. Rg4+ {[%clk 0:00:13.7]} 29... Kh7 {[%clk 0:00:22.8]} 30. Ra7
{[%clk 0:00:11.1]} 30... Re7 {[%clk 0:00:19.8]} 31. Bxb6 {[%clk 0:00:11.2]}
31... Rxa7 {[%clk 0:00:19.8]} 32. Bxa7 {[%clk 0:00:12.1]} 32... f5 {[%clk
0:00:17.6]} 33. Rf4 {[%clk 0:00:10.9]} 33... Kg6 {[%clk 0:00:18.2]} 34. h4
{[%clk 0:00:10.6]} 34... Rd8 {[%clk 0:00:10]} 35. Be3 {[%clk 0:00:08.3]} 35...
f6 {[%clk 0:00:09.4]} 36. Kg2 {[%clk 0:00:07.2]} 36... Re8 {[%clk 0:00:08.9]}
37. h5+ {[%clk 0:00:05.4]} 37... Kf7 {[%clk 0:00:05.1]} 38. Rxf5 {[%clk
0:00:05.5]} 38... Re5 {[%clk 0:00:06]} 39. g4 {[%clk 0:00:03.3]} 39... Rxf5
{[%clk 0:00:02.7]} 40. gxf5 {[%clk 0:00:03.8]} 40... Na5 {[%clk 0:00:02.5]} 41.
h6 {[%clk 0:00:03.8]} 41... Nc6 {[%clk 0:00:02.6]} 42. Kf3 {[%clk 0:00:03.4]}
42... Kg8 {[%clk 0:00:01.3]} 43. Bf4 {[%clk 0:00:02.9]} 43... Kf7 {[%clk
0:00:01.6]} 44. Ke3 {[%clk 0:00:03.2]} 44... Ne7 {[%clk 0:00:01.8]} 45. Kd4
{[%clk 0:00:02.6]} 45... Kg8 {[%clk 0:00:01.6]} 46. Bd6 {[%clk 0:00:02.7]} 46...
Nxf5+ {[%clk 0:00:02]} 47. Kxd5 {[%clk 0:00:03.2]} 47... Nxh6 {[%clk 0:00:02.5]}
48. Kxc4 {[%clk 0:00:03.5]} 48... Kf7 {[%clk 0:00:03.4]} 49. Kd5 {[%clk
0:00:03.8]} 49... Ng4 {[%clk 0:00:04.1]} 50. f3 {[%clk 0:00:03.1]} 50... Ne3+
{[%clk 0:00:04.2]} 51. Ke4 {[%clk 0:00:03.5]} 51... Nc4 {[%clk 0:00:04.6]} 52.
Bf4 {[%clk 0:00:04.1]} 52... Ke6 {[%clk 0:00:05.1]} 53. Kd4 {[%clk 0:00:04.7]}
53... Na5 {[%clk 0:00:03.6]} 54. c4 {[%clk 0:00:04.7]} 54... Nb3+ {[%clk
0:00:04.2]} 55. Kc3 {[%clk 0:00:05]} 55... Nc5 {[%clk 0:00:05]} 56. Be3 {[%clk
0:00:05.6]} 56... Nd7 {[%clk 0:00:04.7]} 57. Kd4 {[%clk 0:00:04.9]} 57... Ne5
{[%clk 0:00:04.8]} 58. f4 {[%clk 0:00:05.5]} 58... Nd7 {[%clk 0:00:04]} 59. c5
{[%clk 0:00:04.9]} 59... Nb8 {[%clk 0:00:04.6]} 60. Kc4 {[%clk 0:00:04.8]} 60...
Nc6 {[%clk 0:00:04.9]} 61. Kb5 {[%clk 0:00:04.9]} 61... Kd5 {[%clk 0:00:05.8]}
62. Kb6 {[%clk 0:00:04.2]} 62... f5 {[%clk 0:00:06]} 63. Bf2 {[%clk 0:00:04.3]}
63... Nb4 {[%clk 0:00:06.1]} 64. Bh4 {[%clk 0:00:02.7]} 64... Nc6 {[%clk
0:00:07]} 65. Bf6 {[%clk 0:00:02.7]} 65... Nb4 {[%clk 0:00:07.2]} 66. Be5 {[%clk
0:00:02.8]} 66... Nc6 {[%clk 0:00:07.2]} 67. Bd6 {[%clk 0:00:03.2]} 67... Nd4
{[%clk 0:00:07.3]} 68. Kc7 {[%clk 0:00:02.9]} 68... Ne6+ {[%clk 0:00:04.5]} 69.
Kd7 {[%clk 0:00:03.2]} 69... Nxf4 {[%clk 0:00:03.5]} 70. c6 {[%clk 0:00:02.3]}
70... Ne6 {[%clk 0:00:04]} 71. c7 {[%clk 0:00:02.9]} 71... Nxc7 {[%clk
0:00:03.5]} 72. Bxc7 {[%clk 0:00:03.8]} 72... f4 {[%clk 0:00:04.1]} 73. Bxf4
{[%clk 0:00:03.1]} 1/2-1/2